Cogmind - Beta 17 @@@ ROGUE MODE // 2026.08.01 @ 10:24:57 Player: Afro Result: Destroyed by as-40236 with Assembled Heavy Rifle Performance ------------- Evolutions (0) 0 Regions Visited (4) 800 Robots Destroyed (33) 165 Value Destroyed (496) 496 Prototype IDs (23) 460 Alien Tech Used (0) 0 Bonus (300) 300 TOTAL SCORE: 2221 Bonus ------- Aligned with FarCom 300 Cogmind --------- Core Integrity 0/250 Matter 215/300 Energy 265/265 System Corruption 2% Temperature Hot (212) Movement Walking (330) Ox3 Location -9/Mines Parts ------- > --- POWER (1) -------- Improved Ion Engine > --- PROPULSION (2) --- Aluminum Leg > --- UTILITY (2) ------ Large Storage Unit Signal Interpreter > --- WEAPON (2) ------- Particle Gun Longsword +1 > --- INVENTORY (15) --- Improved Ion Engine Sensor Array Seismic Detector Targeting Computer Light Armor Plating Tractor Beam EM Pulse Gun Light Assault Rifle Light Assault Rifle Mining Laser Peak State ------------ > --- POWER ------------ Light Nuclear Core > --- PROPULSION ------- Aluminum Leg Aluminum Leg > --- UTILITY ---------- Large Storage Unit Signal Interpreter > --- WEAPON ----------- Heavy Assault Rifle Longsword +1 > --- INVENTORY -------- Improved Ion Engine Improved Ion Engine Aluminum Leg Aluminum Leg Sensor Array Seismic Detector Targeting Computer Light Armor Plating Tractor Beam EM Pulse Gun Particle Gun Light Assault Rifle Light Assault Rifle Rocket Launcher Mining Laser [Rating: 18] Favorites ----------- Power Light Nuclear Core Engine Light Ion Engine Power Core Light Nuclear Core Propulsion Light Treads Treads Light Treads Leg Aluminum Leg Utility Large Storage Unit Device Seismic Detector Storage Large Storage Unit Processor Signal Interpreter Weapon Light Assault Rifle Energy Gun Particle Gun Ballistic Gun Light Assault Rifle Launcher Rocket Launcher Special Weapon Mining Laser Slashing Weapon Longsword +1 Build | -11 -10 -10 -10 -9 ------- Run | Yrd Mat Min Exi Min Slots Evolved . | . . . . . Power . | . . . . . Propulsion . | . . . . . Utility . | . . . . . Weapon . | . . . . . Parts Attached 27 | 9 9 6 . 3 Power 4 | 1 1 1 . 1 Engine 3 | 1 1 . . 1 Core 1 | . . 1 . . Reactor . | . . . . . Propulsion 7 | 4 . 3 . . Treads 2 | 2 . . . . Leg 5 | 2 . 3 . . Wheel . | . . . . . Hover . | . . . . . Flight . | . . . . . Utility 6 | 2 4 . . . Device 1 | 1 . . . . Storage 4 | 1 3 . . . Processor 1 | . 1 . . . Hackware . | . . . . . Protection . | . . . . . Artifact . | . . . . . Weapon 10 | 2 4 2 . 2 Energy Gun 4 | 1 2 1 . . Energy Cannon . | . . . . . Ballistic Gun 3 | 1 1 1 . . Ballistic Cannon . | . . . . . Launcher 1 | . . . . 1 Special Weapon 1 | . 1 . . . Impact Weapon . | . . . . . Slashing Weapon 1 | . . . . 1 Piercing Weapon . | . . . . . Special Melee Weapon . | . . . . . Unidentified Prototypes . | . . . . . Parts Lost 10 | . 4 . . 6 Power 2 | . 1 . . 1 Propulsion 3 | . . . . 3 Utility . | . . . . . Weapon 5 | . 3 . . 2 Highest Loss Streak 4 | . 4 . . 4 To Critical Strikes 1 | . . . . 1 Average Backups 11 | 6 8 14 14 13 Power 1 | 1 1 1 2 1 Propulsion 2 | 1 2 2 2 1 Utility 3 | . 2 6 5 5 Weapon 3 | 1 1 4 5 5 Tool/Special . | . . . . . Unused Backups 14 | . . 3 2 9 Power 3 | . . 1 1 1 Propulsion 1 | . . 1 . . Utility 6 | . . 1 1 4 Weapon 4 | . . . . 4 Tool/Special . | . . . . . Average Slot Usage (%) 99 | . 99 100 100 98 Engine 7 | . 14 3 . 7 Core 6 | . . 10 14 6 Treads 14 | . 28 7 . . Leg 13 | . . 20 28 26 Device 4 | . 10 . . . Storage 14 | . 14 14 14 14 Processor 9 | . 3 14 14 14 Energy Gun 13 | . 14 14 14 9 Ballistic Gun 12 | . 12 14 14 6 Peak Build Rating 18 | 7 8 12 13 18 Average Rating 9 | 5 7 10 12 15 On Entrance 8 | . 7 8 12 13 Avg Prop Armor Cover (%) . | . . . . . Naked Turns . | . . . . . Heaviest Build 87 | 12 87 31 31 33 Greatest Support 40 | 40 40 40 20 20 Greatest Overweight (x) 3 | . 2 2 1 3 Average Overweight (x) . | . . . 1 1 Largest Inventory Capacity 25 | 8 25 15 15 15 Average Capacity 13 | 7 14 15 15 15 Most Carried 15 | 8 14 15 15 15 Average Carried 11 | 6 8 14 14 13 Final Capacity 15 | 8 15 15 15 15 Final Carried 15 | 7 14 15 15 10 Class Distribution -------------------- 60% | Mutant 39% | Scavenger-Mutant Dominant Class ---------------- Mutant | -10/Materials Scavenger-Mutant | -10/Mines Scavenger-Mutant | -10/Exiles Mutant | -9/Mines Resources | -11 -10 -10 -10 -9 ----------- Run | Yrd Mat Min Exi Min Matter Collected 759 | 396 113 115 . 135 Remotely . | . . . . . Salvage Created 793 | 244 337 164 . 48 Parts 65 | 29 18 15 . 3 Haulers Intercepted 1 | . 1 . . . Recyclers Shooed 1 | . . 1 . . Parts Field Recycled . | . . . . . Retrieved Matter . | . . . . . Parts Self-Destructed . | . . . . . Prevented . | . . . . . Parts Restored . | . . . . . Kills | -11 -10 -10 -10 -9 ------- Run | Yrd Mat Min Exi Min Combat Hostiles Destroyed 31 | . 13 5 . 13 Guns 16 | . 9 5 . 2 AOE 15 | . 4 . . 11 Classes Destroyed 8 | 3 3 . . 2 Worker 5 | 2 1 1 . 1 Tunneler 7 | 7 . . . . Hauler 1 | . 1 . . . Recycler 1 | 1 . . . . Swarmer 11 | . 8 3 . . Grunt 7 | . 5 2 . . Demolisher 1 | . . . . 1 Assembled 12 | . . . . 12 Best Kill Streak 10 | 4 4 3 . 10 Combat Bots Only 10 | . 3 3 . 10 Max Kills in Single Turn 4 | 1 2 1 . 4 Gunslinging 1 | . 1 . . . Exploded 4 | . 1 . . 4 Melee . | . . . . . Uniques/NPCs Destroyed . | . . . . . Combat | -11 -10 -10 -10 -9 -------- Run | Yrd Mat Min Exi Min Hostile Shots Fired 137 | . 79 19 . 39 Missed 29 | . 19 4 . 6 Hits 108 | . 60 15 . 33 Melee 1 | . . . . 1 Projectile 107 | . 60 15 . 32 AOE 10 | . . . . 10 Critical Strikes 1 | . . . . 1 Damage Taken 1518 | . 580 170 . 768 Core 259 | . 77 44 . 138 Absorbed by Shields . | . . . . . Core Remaining (%) 100 | 100 . . . . Volleys Fired 94 | 26 35 17 . 16 Largest 2 | 2 2 2 . 1 Hottest 140 | 60 140 85 . 65 Shots Fired 168 | 50 67 35 . 16 Gun 156 | 50 66 35 . 5 Cannon . | . . . . . Launcher 11 | . . . . 11 Special 1 | . 1 . . . Kinetic 66 | 24 24 17 . 1 Thermal 35 | . 13 18 . 4 Explosive 11 | . . . . 11 Electromagnetic 56 | 26 30 . . . Robot Hit Streak 11 | 6 10 11 . 2 Robot Miss Streak 3 | 3 2 3 . 2 Penetration Max . | . . . . . Secondary Targets 5 | . 3 2 . . Max Gunslinging Chain 1 | . 1 1 . . Shots Hit Robots 104 | 28 49 21 . 6 Core Hits 67 | 12 18 11 . 26 Critical Kills . | . . . . . Critical Parts Destroyed . | . . . . . Critical Strikes 3 | 1 2 . . . Burn 2 | . 2 . . . Corrupt 1 | 1 . . . . Melee Attacks . | . . . . . Impact . | . . . . . Slashing . | . . . . . Piercing . | . . . . . Sneak Attacks . | . . . . . Combat Hostiles . | . . . . . Follow-up Attacks . | . . . . . Damage Inflicted 2377 | 350 790 251 . 986 Guns 1119 | 330 497 229 . 63 Cannons . | . . . . . Explosions 1190 | 20 247 . . 923 Melee . | . . . . . Ramming 44 | . 22 22 . . Kinetic 329 | 106 131 92 . . Thermal 603 | 20 383 137 . 63 Explosive 923 | . . . . 923 Electromagnetic 478 | 224 254 . . . Impact . | . . . . . Slashing . | . . . . . Piercing . | . . . . . Highest Corruption 2 | . 2 2 2 2 Average Corruption 2 | . 2 2 2 2 Corruption Purged . | . . . . . Corruption Blocked . | . . . . . Effects 33 | . 10 15 6 2 Message Errors 6 | . . 4 2 . Matter Fused 9 | . 3 4 2 . Heat Flow Errors 4 | . 1 2 . 1 Energy Discharges 6 | . 2 1 2 1 Parts Rejected 1 | . 1 . . . Data Loss (minor) 3 | . . 3 . . Data Loss (major) 2 | . 2 . . . Misfires 1 | . . 1 . . Weapon Failures 1 | . 1 . . . Overload Shots . | . . . . . Overflow Damage 95 | . 45 . . 50 Projectiles . | . . . . . Explosions 95 | . 45 . . 50 Melee . | . . . . . Knockbacks 2 | . . 2 . . Impact 2 | . . 2 . . Kinetic . | . . . . . Secondary . | . . . . . Self-Inflicted Damage 82 | . 50 . . 32 Shots 3 | . 2 . . 1 Rammed 10 | . 10 . . . Targets Rammed 15 | . 11 4 . . Kicked 4 | . . 4 . . Crushed 1 | . 1 . . . Highest Temperature 270 | 40 172 270 . 230 Average Temperature 54 | 18 42 79 . 105 Received Heat Transfer 291 | . 108 63 . 120 Effects 6 | . . 3 . 3 Interference 6 | . . 3 . 3 Siege Activations . | . . . . . Martial Activations . | . . . . . Shielding Activations . | . . . . . Robots Disrupted . | . . . . . Combat Hostiles . | . . . . . Robots Corrupted . | . . . . . Combat Hostiles . | . . . . . Parts Fried . | . . . . . Impact Corruptions . | . . . . . Robots Melted . | . . . . . Combat Hostiles . | . . . . . Parts Melted 3 | . 3 . . . Heat Transferred 1349 | . 831 370 . 148 Parts Sabotaged . | . . . . . Parts Stolen . | . . . . . Parts Stripped . | . . . . . Power Chain Reactions 5 | 1 4 . . . Alert | -11 -10 -10 -10 -9 ------- Run | Yrd Mat Min Exi Min Maximum Alert Level . | . . . . . Low Security (%) 100 | 100 100 100 . 100 Level 1 . | . . . . . Level 2 . | . . . . . Level 3 . | . . . . . Level 4 . | . . . . . Level 5 . | . . . . . High Security . | . . . . . Max Security . | . . . . . Peak Influence 140 | 10 140 83 . 31 Initial 13 | . . 13 . . Average 28 | 1 45 19 . 10 Influence Increases 666 | 50 401 140 . 75 Destroy 0b10 Robot/C 380 | . 260 100 . 20 Destroy 0b10 Robot/NC 70 | 50 10 5 . 5 Destroy Leader 92 | . 62 20 . 10 Disable Machine 30 | . 30 . . . Destroy Structure 64 | . 24 . . 40 Lose Combat Pursuer 30 | . 15 15 . . Influence Decreases 666 | 50 365 176 . 75 Entered New Map 23 | . . 23 . . Time Decay 578 | 50 335 153 . 40 Lost Part 65 | . 30 . . 35 Squads Dispatched 3 | . 3 . . . Investigation 1 | . 1 . . . Extermination . | . . . . . Reinforcement 2 | . 2 . . . Assault . | . . . . . Garrison . | . . . . . Intercept . | . . . . . Searches Triggered . | . . . . . Construction Impeded . | . . . . . Haulers Reinforced . | . . . . . Active Scanning Responses . | . . . . . Cargo Convoy Interrupts . | . . . . . Stealth | -11 -10 -10 -10 -9 --------- Run | Yrd Mat Min Exi Min Distress Signals 3 | . 3 . . . Communications Jammed . | . . . . . Distress Signals . | . . . . . Times Spotted 56 | . 33 8 . 15 Peak Tracking Total 8 | . 7 3 . 8 Tactical Retreats 2 | . 1 1 . . Traps | -11 -10 -10 -10 -9 ------- Run | Yrd Mat Min Exi Min Traps Triggered 1 | . 1 . . . Indirectly . | . . . . . Trap Hack Attempts . | . . . . . Triggered . | . . . . . Disarmed . | . . . . . Reprogrammed . | . . . . . Reused . | . . . . . Traps Extracted . | . . . . . Installed . | . . . . . Triggered . | . . . . . Machines | -11 -10 -10 -10 -9 ---------- Run | Yrd Mat Min Exi Min Machines Disabled 2 | . 2 . . . Max in Single Turn 1 | . 1 . . . Machines Repaired . | . . . . . Machines Dismantled . | . . . . . Machines Sabotaged . | . . . . . Overloaded Fab Kills . | . . . . . Hacking | -11 -10 -10 -10 -9 --------- Run | Yrd Mat Min Exi Min Machines Accessed 3 | . 1 . 2 . Terminals 1 | . 1 . . . Fabricators . | . . . . . Repair Stations . | . . . . . Recycling Units . | . . . . . Scanalyzers . | . . . . . Garrison Access . | . . . . . Total Hacks 6 | . 2 . 4 . Successful 4 | . . . 4 . Failed 2 | . 2 . . . Catastrophic 1 | . 1 . . . Database Lockouts . | . . . . . Manual 3 | . 2 . 1 . Terminals 2 | . 2 . . . Fabricators . | . . . . . Repair Stations . | . . . . . Recycling Units . | . . . . . Scanalyzers . | . . . . . Garrison Access . | . . . . . Terminal Hacks 4 | . . . 4 . Record 3 | . . . 3 . Proto ID Catalog 1 | . . . 1 . Fabricator Hacks . | . . . . . Repair Station Hacks . | . . . . . Recycling Unit Hacks . | . . . . . Scanalyzer . | . . . . . Garrison Access Hacks . | . . . . . Unauthorized Hacks . | . . . . . Terminals . | . . . . . Fabricators . | . . . . . Repair Stations . | . . . . . Recycling Units . | . . . . . Scanalyzers . | . . . . . Garrison Access . | . . . . . Data Cores Recovered . | . . . . . Used . | . . . . . Hacking Detections 1 | . 1 . . . Full Trace Events 1 | . 1 . . . Feedback Events . | . . . . . Feedback Blocked . | . . . . . Robot Schematics Acquired . | . . . . . Robots Built . | . . . . . Authchips . | . . . . . Time . | . . . . . Total Robot Build Rating . | . . . . . Part Schematics Acquired . | . . . . . Parts Built . | . . . . . Authchips . | . . . . . Time . | . . . . . Total Part Build Rating . | . . . . . Part Studies Acquired . | . . . . . Parts Repaired . | . . . . . Time . | . . . . . Parts Recycled . | . . . . . Recycled Matter . | . . . . . Retrieved Matter . | . . . . . Retrieved Components . | . . . . . Parts Scanalyzed . | . . . . . Part Schematics Acquired . | . . . . . Parts Damaged . | . . . . . Bothacking | -11 -10 -10 -10 -9 ------------ Run | Yrd Mat Min Exi Min Used RIF Installer . | . . . . . Robots Hacked . | . . . . . Non-combat . | . . . . . Combat . | . . . . . Robot Hacks Applied . | . . . . . Relay Couplers Released . | . . . . . Fabnet Peak Effective % . | . . . . . Robots Rewired . | . . . . . Allies Hacked . | . . . . . Hacks Repelled . | . . . . . Allies | -11 -10 -10 -10 -9 -------- Run | Yrd Mat Min Exi Min Total Allies . | . . . . . Largest Group . | . . . . . Highest-Rated Group . | . . . . . Highest-Rated Ally . | . . . . . Total Orders . | . . . . . Ally Attacks . | . . . . . Total Damage . | . . . . . Kills . | . . . . . Allies Corrupted . | . . . . . Allies Melted . | . . . . . Intel | -11 -10 -10 -10 -9 ------- Run | Yrd Mat Min Exi Min Active Infowar (turns) 837 | 20 817 . . . Seismic 837 | 20 817 . . . Robot Analysis Total . | . . . . . Derelict Logs Recovered 1 | . . 1 . . Drone Launches . | . . . . . Drone Recoveries . | . . . . . Exploration | -11 -10 -10 -10 -9 ------------- Run | Yrd Mat Min Exi Min Turns Passed 2798 | 368 1117 697 494 122 Spaces Moved 1417 | 184 598 338 258 39 Core 10 | 10 . . . . Treads 828 | 156 598 74 . . Legs 579 | 18 . 264 258 39 Wheels . | . . . . . Hover . | . . . . . Flight . | . . . . . Fastest Speed 50 | 50 160 160 190 190 Average Speed 171 | 150 161 185 190 193 Slowest Speed 330 | 160 320 260 190 330 Overloaded Moves . | . . . . . Propulsion Burnouts . | . . . . . Robots Hopped . | . . . . . Potential Cave-ins . | . . . . . Cave-ins Triggered . | . . . . . Exploration Rate (%) 42 | 9 82 44 64 14 Regions Visited 4 Branch Regions 3 Pre-discovered Areas 2 | . . 1 1 . Known Exits Taken 3 | . 1 1 1 . Unknown Exits Taken 1 | 1 . . . . Scrap Searched 1 | . . 1 . . Spaces Dug . | . . . . . Terrain Destroyed 81 | 4 18 . . 59 Melee . | . . . . . Projectile . | . . . . . AOE 81 | 4 18 . . 59 Terrain Rammed . | . . . . . Walls Destroyed . | . . . . . Machines Disabled . | . . . . . Actions | -11 -10 -10 -10 -9 --------- Run | Yrd Mat Min Exi Min Total 1615 | 227 674 381 263 70 Wait 14 | . 8 2 . 4 Move 1413 | 183 597 337 257 39 Hop . | . . . . . Pick Up 27 | 9 10 5 2 1 Fast Attach 10 | 5 2 2 1 . Attach 10 | 2 3 . . 5 Detach . | . . . . . Swap 16 | 2 6 4 . 4 Drop 16 | . 2 10 3 1 Fire 94 | 26 35 17 . 16 Melee . | . . . . . Ram . | . . . . . Kick 4 | . . 4 . . Crush 11 | . 11 . . . Escape Stasis . | . . . . . Rewire . | . . . . . Trap . | . . . . . Miscellaneous . | . . . . . Route ------- -11/Scrapyard -10/Materials (discovered 3 exits: *Mat / *Min x2) -10/Mines -10/Exiles -9/Mines History --------- Turn | Location | Event 9 | -11/Scrapyard | Discovered new exit (range 15) 369 | -11/Scrapyard | Entered Materials 370 | -10/Materials | Build established: Mutant 606 | -10/Materials | Discovered new exit (range 14) 1007 | -10/Materials | Lost 4 parts (1p3w) 1171 | -10/Materials | Discovered new exit (range 14) 1226 | -10/Materials | Identified exit to Mines 1366 | -10/Materials | Discovered new exit (range 7) 1379 | -10/Materials | Identified exit to Materials 1486 | -10/Materials | Entered Mines 1855 | -10/Mines | Joined a pair of Derelicts in attacking an 0b10 outpost 1916 | -10/Mines | Build established: Scavenger-Mutant 2101 | -10/Mines | Learned location of Zion (-6) 2167 | -10/Mines | Deemed a non-threat by the Exiles lab entrance 2169 | -10/Mines | Discovered new exit (range 5) 2181 | -10/Mines | Identified exit to Exiles 2183 | -10/Mines | Entered Exiles 2243 | -10/Exiles | Met 8R-AWN 2275 | -10/Exiles | Met EX-HEX 2326 | -10/Exiles | Met EX-BIN 2364 | -10/Exiles | Aligned with FarCom system 2366 | -10/Exiles | Given EX-Vault access code 2412 | -10/Exiles | Opened EX-Vault 2425 | -10/Exiles | Found Longsword +1 2462 | -10/Exiles | Warned to stay clear of 0b10 Research branches 2515 | -10/Exiles | Met EX-DEC 2652 | -10/Exiles | Discovered new exit (range 14) 2673 | -10/Exiles | Identified exit to Mines 2677 | -10/Exiles | Left Exiles lab with Longsword +1 2677 | -10/Exiles | Entered Mines 2678 | -9/Mines | Assembled infested the area 2683 | -9/Mines | Assisted by a Guerilla fighting off Assembled 2684 | -9/Mines | Received a Rocket Launcher from a helpful Derelict 2694 | -9/Mines | Met a Derelict bent on vengeance 2721 | -9/Mines | Core integrity fell below 50% 2755 | -9/Mines | Core integrity fell below 20% 2782 | -9/Mines | Destroyed 10 combat bots 2783 | -9/Mines | Lost 4 parts (1p2n1w) 2799 | -9/Mines | Destroyed by as-40236 with Assembled Heavy Rifle Last Messages --------------- 02761_ as-57544 destroyed. 02762_ K-01 Serf collects debris. 02765_ Acquired 31 matter. 02768_ K-01 Serf collects debris. 02770_ Acquired 104 matter. 02771_ The unstable cave ceiling collapses. 02785_ as-35855 destroyed. 02787_ System corrupted: Heat flow error (+195). 02787_ K-01 Serf destroyed. 02789_ Destroyed Asb. F-torch. 02791_ as-11707 destroyed. 02791_ Rocket Launcher destroyed. 02792_ The unstable cave ceiling collapses. 02796_ as-15113 destroyed. 02797_ Critical hit (Destroy). 02797_ Aluminum Leg destroyed. 02799_ Overheating: System interference. 02799_ Signal Interpreter temporarily disabled. 02799_ The unstable cave ceiling collapses. Map ----- +----------------------------------------------------+ | ???????????????????????????????????????? | | ???????????????????????????????????????? | | ???????????????????????????????????????? | | ???????????????????????????????????????? | | ???????????????????????????????????????? | | ???????????????????????????????????????? | | ???????????????????????????????????????? | | ???????????????????????????????????????? | | ???????????????????????????????????????? | | ???????????????????????????????????????? | | ?????????????????????????????????C?????? | | ???????????????????????????????????????? | | ???????????????????????????????????????? | | ???????????????????????????????????????? | | ???????????????????????????????????????? | | ???????????????????????????????????????? | | ???????????????????????????????????????? | | ????????????????????????####???????????? | | ????????????????????????# ????????????? | | ??????????????????????### #????????????? | | ???????????????######## #????????????? | | ????????? # ???# # #????????????? | | ????????? # # ##???????????? | | ???????? ##??????????? | | ???????? # $ = ;#??????????? | | ??????? * %@ ##??????????? | | ??????? ! ##?????????? | | ??????? "" ###???????? | | ??????? "" ##??????? | | ??????? a % """ #??????? | | ??????? # # # #??????? | | ???????? # # # ## ##??????? | | ????????????## # # ##?####???????? | | ?????????????# #####?????????????? | | ?????????????## ## # ##??????????????? | | ??????????????## # ####?????????????? | | ??????????????## # #?????????????? | | ??????????????## ##????????????? | | ???????????????### #????????????? | | ????????????????# #????????????? | | ????????????????## ] ##????????????? | | ?????????????????#### #?????????????? | | ????????????????????## #?????????????? | | ?????????????????????# #????????????? | | ?????????????????????# #????????????? | | ?????????????????????# #????????????? | | ????????????????????? ????????????? | | ????????????????????? ???????????? | | ????????????????????### ??????????? | | ??????????????????????? #??????????? | +----------------------------------------------------+ Best States ------------- Heat Dissipation 25 Energy Generation 14 Energy Capacity 265 Matter Stores 300 Matter Capacity 300 Sight Range 16 Terrain Scan Density 10 Evasion (%) 55 Recoil Reduction 2 Item Schematics ----------------- None Robot Schematics ------------------ None Fabricated ------------ Nothing Repaired ---------- Nothing Studied --------- None Alien Tech Used ----------------- None Achievements -------------- None Challenges ------------ None Game ------ Seed d479c87f-a6d0-4bf0-aaaa-e835 Manual? 1 Play Time 00:20:43 Cumulative 58.2 hours Start 2026.07.31 @ 20:23:37 End 2026.08.01 @ 10:24:57 Sessions 3 Manual Loads 0 Difficulty Rogue Special Mode None Game No. 53 Rogue 53 Adventurer 0 Explorer 0 Win Type - Total 0 Types 0/0/0/0/0/0/0/0/0/0 Lore% 10 Gallery% 28 Achievement% 21 Wizard Run 0 Options --------- Layout 1 ASCII 0 Keyboard 0 Movement Mouse Keybinds 0 Fullscreen 2 Font 24/Smallcaps Map View 50x35 Zoom Use 0% Tactical HUD 1 Map Filters NONE Filters NONE Steam 1 RUN: d85219e4-0c34-4c19-b240-0b049c8ed7ab